{"text_format":"1","workbook":"xlsx","n_sheets":33,"sheets":["Introducción","Organización","Responsable","Línea base","A Línea Base - Generalidades","A_1 Número de empleados","A_2 Tipo de organización","A_3 Nivel de formación","A_4 Información financiera","B Línea Base - Innovación","B_1Área exclusiva de innovación","B_2 Nivel de formación","B_3 Aspectos de innovación","B_4 Cantidad de innovaciones","B_5 Estado de proyectos","B_6 Resultados","B_7 Impacto","B_8 Obstaculos","B_8_aInformación y cap internas","B_8_b Riesgos","B_8_c Entorno","B_9","B_10 Fuentes de financiación","B_11 Acceso a recursos públicos","B_12 Beneficions tributarios","Respuesta_beneficios","B_13 Patentes","B_14 Protección de PI","Cierre","BD_org","BD_LB","Listas","Términos y condiciones"],"not_rendered":{"charts":0,"images":11,"macros":1,"external_links":0,"defined_names":14,"comments":0,"pivot_tables":0},"unopened":[],"bounds":{"document_bytes":16777216,"sheet_cells":100000,"rows_first":2000,"rows_last":500,"rows_between":2000,"halvings":0,"cell_chars":16384,"cell_head_chars":4096},"cells_cut":0,"cells_raw":0,"read":"whole","date_system":"1900"}

{"sheet":"Introducción","index":0,"n_rows":0,"n_cols":0,"rows_kept":0,"cut":false,"hidden":false,"merged":[]}

{"sheet":"Organización","index":1,"n_rows":16,"n_cols":5,"rows_kept":16,"cut":false,"hidden":false,"merged":[[7,1,8,5],[14,0,14,1],[15,0,15,1]]}
[]
[]
[]
[]
[]
[]
[]
[null,"Diligencie los campos que se presentan a continuación sobre su organización."]
[]
[null,"Razón Social",null,null,"NIT"]
[]
[null,"Nacionalidad de la empresa","NOTA: Si la empresa es nacional en su totalidad, ingrese 100 en el % Nacional",null,"Tipo de entidad"]
[null,"% Nacional"]
[null,"% Internacional"]
["Localización Casa Matriz\n(ciudad, país)"]
["Localización Sede principal\n(ciudad, país)"]

{"sheet":"Responsable","index":2,"n_rows":12,"n_cols":5,"rows_kept":12,"cut":false,"hidden":false,"merged":[[6,1,6,5]]}
[]
[]
[]
[]
[]
[]
[null,"Como persona líder del proceso de postulación de su organización al programa Sistemas de Innovación,\npor favor registre su información personal en los siguientes campos."]
[null,"Nombre de quien diligencia",null,null,"Número de identificación"]
[]
[null,"Cargo",null,null,"Celular"]
[]
[null,"Correo electrónico"]

{"sheet":"Línea base","index":3,"n_rows":9,"n_cols":2,"rows_kept":9,"cut":false,"hidden":false,"merged":[[64,3,69,3],[34,3,37,3],[46,3,48,3],[50,3,51,3],[53,3,54,3],[62,3,63,3],[7,1,7,5],[8,1,8,5],[12,1,15,1],[12,3,15,3],[17,3,19,3]]}
[]
[]
[]
[]
[]
[]
[]
[null,"Las preguntas a diligenciar a continuación tienen como objetivo generar la información base de la Organización en relación a las actividades de Ciencia, Tecnología o Innovación para el programa Sistemas de Innovación. La información que la Organización proporcione tendrá un manejo confidencial. Esta información será utilizada para analizar los resultados obtenidos de la implementación del programa en caso de ser seleccionado como beneficiario."]
[null,"Los siguientes botones lo llevarán a cada una de las secciones de la línea base"]

{"sheet":"A Línea Base - Generalidades","index":4,"n_rows":0,"n_cols":0,"rows_kept":0,"cut":false,"hidden":false,"merged":[[53,3,54,3],[62,3,63,3],[64,3,69,3],[12,1,15,1],[12,3,15,3],[17,3,19,3],[34,3,37,3],[46,3,48,3],[50,3,51,3]]}

{"sheet":"A_1 Número de empleados","index":5,"n_rows":14,"n_cols":6,"rows_kept":14,"cut":false,"hidden":false,"merged":[[64,3,69,3],[12,1,15,1],[17,3,19,3],[34,3,37,3],[46,3,48,3],[50,3,51,3],[62,3,63,3],[13,3,13,4],[10,3,10,4],[11,3,11,4],[12,3,12,4],[53,3,54,3],[8,3,8,4],[9,3,9,4]]}
[]
[]
[]
[]
[]
[]
[]
[null,"1. ¿Cuál es el número total de empleados en la Organización, sumando todas las sucursales o sedes en el país a Enero de 2019? "]
[null,null,"Contrato laboral (nómina)"]
[null,null,"Contratación indirecta (temporales)"]
[null,null,"Prestación de servicios (contratistas)"]
[null,null,"Practicantes"]
[null,null,"Otros",null,null,"¿Cuál?"]
[null,null,"TOTAL",{"$f":"SUM(D9:D13)","v":0}]

{"sheet":"A_2 Tipo de organización","index":6,"n_rows":10,"n_cols":3,"rows_kept":10,"cut":false,"hidden":false,"merged":[[8,3,8,4],[9,3,9,4],[10,3,10,4],[11,3,11,4],[12,1,15,1],[12,3,12,4],[64,3,69,3],[17,3,19,3],[34,3,37,3],[46,3,48,3],[50,3,51,3],[53,3,54,3],[62,3,63,3]]}
[]
[]
[]
[]
[]
[]
[]
[null,"2. ¿La Organización es una Empresa Familiar y/o pertenece a un Grupo Empresarial? (Seleccione Sí o NO en cada una de las opciones)"]
[null,null,"Empresa familiar"]
[null,null,"Grupo empresarial"]

{"sheet":"A_3 Nivel de formación","index":7,"n_rows":9,"n_cols":2,"rows_kept":9,"cut":false,"hidden":false,"merged":[[12,1,15,1],[12,3,12,4],[64,3,69,3],[8,3,8,4],[17,3,19,3],[34,3,37,3],[46,3,48,3],[50,3,51,3],[53,3,54,3],[62,3,63,3],[9,3,9,4],[10,3,10,4],[11,3,11,4]]}
[]
[]
[]
[]
[]
[]
[]
[]
[null,"3. Señale el nivel de formación de la Gerencia de la Organización"]

{"sheet":"A_4 Información financiera","index":8,"n_rows":14,"n_cols":8,"rows_kept":14,"cut":false,"hidden":false,"merged":[[11,10,11,11],[63,10,68,10],[13,1,13,8],[16,10,18,10],[33,10,36,10],[45,10,47,10],[49,10,50,10],[52,10,53,10],[61,10,62,10]]}
[]
[]
[]
[]
[]
[]
[]
[]
[]
[]
[null,2016,null,2016,null,2016,null,2016]
[null,2017,null,2017,null,2017,null,2017]
[null,2018,null,2018,null,2018,null,2018]
[null,"                                         Nota: Registrar todos los valores en millones de pesos, según los estados financieros de la Organización."]

{"sheet":"B Línea Base - Innovación","index":9,"n_rows":8,"n_cols":2,"rows_kept":8,"cut":false,"hidden":false,"merged":[[7,1,8,5],[53,3,54,3],[62,3,63,3],[64,3,69,3],[12,1,15,1],[12,3,15,3],[17,3,19,3],[34,3,37,3],[46,3,48,3],[50,3,51,3]]}
[]
[]
[]
[]
[]
[]
[]
[null,"Definición de innovación- La innovación comprende el conjunto de: \n• Productos (servicios o bienes) nuevos o significativamente mejorados, introducidos al mercado nacional o internacional.\n• Procesos nuevos o significativamente mejorados, implementados en la producción de la empresa.\n• Métodos de organización nuevos. \n• Técnicas de comercialización nuevas, aplicadas en las respectivas operaciones de la empresa.\n¡Importante! Las modificaciones de carácter estético sobre los productos y los cambios simples de organización o gestión, quedan excluidos de la definición de innovación."]

{"sheet":"B_1Área exclusiva de innovación","index":10,"n_rows":9,"n_cols":2,"rows_kept":9,"cut":false,"hidden":false,"merged":[[64,3,69,3],[8,1,9,2],[8,3,9,4],[17,3,19,3],[34,3,37,3],[46,3,48,3],[50,3,51,3],[53,3,54,3],[62,3,63,3],[10,3,10,4],[11,3,11,4],[12,1,15,1],[12,3,12,4]]}
[]
[]
[]
[]
[]
[]
[]
[]
[null,"1. A Enero de 2019, ¿Contaba la Organización con un ÁREA EXCLUSIVA para el desarrollo de actividades de Ciencia, Tecnología o Innovación? (Por ejemplo: Gerencia de Innovación, Área de I+D+i o similares)"]

{"sheet":"B_2 Nivel de formación","index":11,"n_rows":21,"n_cols":4,"rows_kept":21,"cut":false,"hidden":false,"merged":[[16,3,16,4],[17,3,17,4],[18,3,18,4],[19,3,19,4],[20,3,20,4],[7,1,8,7],[10,3,10,4],[11,3,11,4],[12,1,15,1],[12,3,12,4],[9,3,9,4],[13,3,13,4],[14,3,14,4],[15,3,15,4],[64,3,69,3],[34,3,37,3],[46,3,48,3],[50,3,51,3],[53,3,54,3],[62,3,63,3]]}
[]
[]
[]
[]
[]
[]
[]
[null,"2. Registre el número de personas dedicadas EXCLUSIVAMENTE a Actividades de Ciencia, Tecnología o Innovación en la Organización a Enero de 2019, \ny de acuerdo a su nivel de formación."]
[]
[null,null,"No hay personas dedicadas"]
[null,null,"Doctorado"]
[null,null,"Maestría"]
[null,null," Especialización"]
[null,null,"Universitario (Profesional)"]
[null,null,"Tecnólogo"]
[null,null,"Técnico Profesional"]
[null,null,"Educación secundaria (completa)"]
[null,null,"Educación primaria"]
[null,null,"Formación Profesional Integral- SENA"]
[null,null,"Ninguna formación"]
[null,null,"Total",{"$f":"SUM(D11:D20)","v":0}]

{"sheet":"B_3 Aspectos de innovación","index":12,"n_rows":15,"n_cols":7,"rows_kept":15,"cut":false,"hidden":false,"merged":[[9,3,9,4],[7,1,9,2],[12,1,15,1],[12,3,12,4],[13,3,13,4],[14,3,14,4],[11,3,11,4],[10,3,10,4],[7,3,7,4],[8,3,8,4],[63,4,68,4],[16,4,18,4],[33,4,36,4],[45,4,47,4],[49,4,50,4],[52,4,53,4],[61,4,62,4]]}
[]
[]
[]
[]
[]
[]
[]
[null,"3. Previo al inicio del programa Sistemas de Innovación,\n¿La Organización contaba con alguno de los siguientes aspectos FORMALIZADOS? ",null,"Una Estrategia de Innovación "]
[null,null,null,"Indicadores de Innovación"]
[null,null,null,"Un portafolio estratégico de proyectos de innovación"]
[null,null,null,"Un proceso definido para llevar las nuevas ideas a la comercialización"]
[null,null,null,"Destinación específica de presupuesto y recursos para innovación"]
[null,null,null,"Una red de expertos identificada y/o potenciales aliados para el desarrollo de innovaciones"]
[null,null,null,"Metodologías, herramientas y/o técnicas interiorizadas para el desarrollo de procesos de innovación"]
[null,null,null,"Otros",null,null,"¿Cuál? "]

{"sheet":"B_4 Cantidad de innovaciones","index":13,"n_rows":12,"n_cols":7,"rows_kept":12,"cut":false,"hidden":false,"merged":[[33,4,36,4],[6,6,6,7],[7,3,7,4],[7,6,7,7],[8,1,10,2],[8,3,8,4],[8,6,8,7],[9,3,9,4],[9,6,9,7],[10,3,10,4],[10,6,10,7],[11,3,11,4],[11,6,11,7],[12,3,12,4],[13,3,13,4],[16,4,18,4],[45,4,47,4],[49,4,50,4],[52,4,53,4],[61,4,62,4],[63,4,68,4]]}
[]
[]
[]
[]
[]
[]
[null,null,null,null,null,"Cantidad","Nombre de las más relevantes"]
[null,null,null,"Ejemplo","Ejemplo",1,"Válvula control inalámbrica"]
[null,"4. Indique la cantidad de innovaciones que tuvo la Organización \nen el año 2018 y escriba el nombre de las tres más relevantes en los casos que aplique (para cada tipo de innovación).",null,"Productos (servicios o bienes) nuevos o significativamente mejorados introducidos al mercado"]
[null,null,null,"Procesos nuevos o significativamente mejorados implementados en la producción de la empresa"]
[null,null,null,"Métodos de organización nuevos "]
[null,null,null,"Técnicas de comercialización nuevas, aplicados en las respectivas operaciones de la empresa"]

{"sheet":"B_5 Estado de proyectos","index":14,"n_rows":10,"n_cols":6,"rows_kept":10,"cut":false,"hidden":false,"merged":[[52,4,53,4],[61,4,62,4],[63,4,68,4],[8,1,10,2],[33,4,36,4],[45,4,47,4],[49,4,50,4],[8,5,8,6],[9,5,9,6],[12,3,12,4],[13,3,13,4],[16,4,18,4]]}
[]
[]
[]
[]
[]
[]
[]
[null,null,null,null,"Cuántos","¿Por qué?"]
[null,"5. Durante el periodo 2016-2018, ¿emprendió la Organización algún proyecto para introducir o implementar una innovación, pero fue ABANDONADO o NO FINALIZADO? ",null,"Abandonado"]
[null,null,null,"No finalizado"]

{"sheet":"B_6 Resultados","index":15,"n_rows":10,"n_cols":4,"rows_kept":10,"cut":false,"hidden":false,"merged":[[52,4,53,4],[61,4,62,4],[63,4,68,4],[8,1,9,2],[12,3,12,4],[13,3,13,4],[16,4,18,4],[33,4,36,4],[45,4,47,4],[49,4,50,4]]}
[]
[]
[]
[]
[]
[]
[]
[]
[null,"6. Las innovaciones que realizó la Organización en el año 2018, ¿Redujeron sus costos y/o aumentaron su facturación? ",null,"Redujeron costos"]
[null,null,null,"Aumentaron facturación"]

{"sheet":"B_7 Impacto","index":16,"n_rows":31,"n_cols":8,"rows_kept":31,"cut":false,"hidden":false,"merged":[[7,1,9,2],[9,5,9,6],[10,5,10,6],[11,5,11,6],[12,1,15,1],[12,5,12,6],[13,5,13,6],[14,5,14,6],[15,5,15,6],[21,2,21,3],[22,2,22,3],[28,5,28,6],[29,5,29,6],[33,4,36,4],[26,5,26,6],[22,5,22,6],[23,5,23,6],[24,5,24,6],[25,5,25,6],[61,4,62,4],[27,5,27,6],[21,5,21,6],[63,4,68,4],[7,4,8,5],[45,4,47,4],[49,4,50,4],[52,4,53,4],[16,5,16,6],[17,5,17,6],[18,5,18,6],[19,5,19,6],[20,5,20,6]]}
[]
[]
[]
[]
[]
[]
[]
[null,"7. Señale el grado de importancia que tuvo sobre los siguientes aspectos de la Organización durante el periodo 2016-2018, la introducción o implementación de innovaciones. ",null,null,"Grado de\nimportancia"]
[null,null,null,"Producto "]
[null,null,null,"Mejora la calidad de los servicios o bienes"]
[null,null,null,"Ampliación en la gama de servicios o bienes"]
[null,null,null,"Mercado"]
[null,null,null,"Ha mantenido su participación en el mercado geográfico de su empresa"]
[null,null,null,"Ha ingresado a un mercado geográfico nuevo"]
[null,null,null,"Proceso"]
[null,null,null,"Aumento de la productividad"]
[null,null,null,"Reducción de los costos laborales"]
[null,null,null,"Reducción en el uso de materias primas"]
[null,null,null,"Reducción en el consumo de energía"]
[null,null,null,"Reducción en el consumo de agua"]
[null,null,null,"Otros impactos"]
[null,null,"Mejora en el cumplimiento de regulaciones, normas y reglamentos técnicos. Incluye cumplimiento de normas de reducción de vertimientos o emisiones tóxicas y de mejora de las condiciones de seguridad industrial"]
[null,null,"Aprovechamiento de residuos del proceso productivo"]
[]
[]
[]
[]
[]
[]
[]
[null,null,null,null,null,null,null," "]

{"sheet":"B_8 Obstaculos","index":17,"n_rows":9,"n_cols":2,"rows_kept":9,"cut":false,"hidden":false,"merged":[[49,4,50,4],[52,4,53,4],[61,4,62,4],[63,4,68,4],[8,1,8,6],[12,3,12,4],[13,3,13,4],[16,4,18,4],[33,4,36,4],[45,4,47,4]]}
[]
[]
[]
[]
[]
[]
[]
[]
[null,"8. Señale los principales obstáculos a los que se enfrenta la Organización para desarrollar innovaciones, asignando un grado de importancia a cada uno."]

{"sheet":"B_8_aInformación y cap internas","index":18,"n_rows":15,"n_cols":5,"rows_kept":15,"cut":false,"hidden":false,"merged":[[63,4,68,4],[33,4,36,4],[45,4,47,4],[16,4,18,4],[8,4,8,5],[9,4,9,5],[10,4,10,5],[11,4,11,5],[12,4,12,5],[13,4,13,5],[14,4,14,5],[49,4,50,4],[52,4,53,4],[61,4,62,4]]}
[]
[]
[]
[]
[]
[]
[]
[null,null,null,"Obstáculos asociados a información y capacidades internas","Grado de importancia"]
[null,null,null,"Escasez de recursos propios"]
[null,null,null,"Falta de personal calificado"]
[null,null,null,"Dificultad para el cumplimiento de regulaciones y reglamentos técnicos"]
[null,null,null,"Escasa información sobre mercados"]
[null,null,null,"Escasa información sobre tecnología disponible"]
[null,null,null,"Escasa información sobre instrumentos públicos de apoyo"]
[null,null,null,"Falta de capacidad para identificar nuevas oportunidades de crecimiento "]

{"sheet":"B_8_b Riesgos","index":19,"n_rows":11,"n_cols":5,"rows_kept":11,"cut":false,"hidden":false,"merged":[[61,4,62,4],[63,4,68,4],[14,4,14,5],[16,4,18,4],[33,4,36,4],[45,4,47,4],[49,4,50,4],[52,4,53,4],[13,4,13,5],[8,4,8,5],[9,4,9,5],[10,4,10,5],[11,4,11,5],[12,4,12,5]]}
[]
[]
[]
[]
[]
[]
[]
[null,null,null,"Obstáculos asociados a riesgos","Grado de importancia"]
[null,null,null,"Incertidumbre frente a la demanda de bienes y servicios innovadores"]
[null,null,null,"Incertidumbre frente al éxito en la ejecución técnica del proyecto"]
[null,null,null,"Baja rentabilidad de la innovación"]

{"sheet":"B_8_c Entorno","index":20,"n_rows":13,"n_cols":5,"rows_kept":13,"cut":false,"hidden":false,"merged":[[61,4,62,4],[63,4,68,4],[14,4,14,5],[16,4,18,4],[33,4,36,4],[45,4,47,4],[49,4,50,4],[52,4,53,4],[13,4,13,5],[8,4,8,5],[9,4,9,5],[10,4,10,5],[11,4,11,5],[12,4,12,5]]}
[]
[]
[]
[]
[]
[]
[]
[null,null,null,"Obstáculos asociados al entorno","Grado de importancia"]
[null,null,null,"Dificultades para acceder a financiamiento externo a la empresa"]
[null,null,null,"Escasas posibilidades de cooperación con otras empresas o instituciones"]
[null,null,null,"Facilidad de imitación por terceros"]
[null,null,null,"Insuficiente capacidad del sistema de propiedad intelectual para proteger la innovación"]
[null,null,null,"Baja oferta de servicios de inspección, pruebas, calibración, certificación y verificación"]

{"sheet":"B_9","index":21,"n_rows":32,"n_cols":8,"rows_kept":32,"cut":false,"hidden":false,"merged":[[29,5,29,6],[30,5,30,6],[23,5,23,6],[62,4,63,4],[15,5,15,6],[16,5,16,6],[17,5,17,6],[20,5,20,6],[18,5,18,6],[19,5,19,6],[27,5,27,6],[28,5,28,6],[22,5,22,6],[21,5,21,6],[24,5,24,6],[25,5,25,6],[64,4,69,4],[34,4,37,4],[46,4,48,4],[50,4,51,4],[53,4,54,4],[26,5,26,6],[7,1,15,2],[12,5,12,6],[13,5,13,6],[14,5,14,6],[8,5,8,6],[9,5,9,6],[10,5,10,6],[11,5,11,6]]}
[]
[]
[]
[]
[]
[]
[]
[null,"9. Indique si su organización tuvo relación con alguna de las siguientes entidades durante el periodo\n2016- 2018\n(Seleccione Sí o NO para cada entidad; en caso de seleccionar SÍ en una entidad, indique el objetivo de la relación seleccionando una opción de la lista desplegable)",null,null,null,"Objetivo de la relación"]
[null,null,null,"Centros de Desarrollo Tecnológico"]
[null,null,null,"Centros de Investigación"]
[null,null,null,"Colciencias"]
[null,null,null,"ICONTEC"]
[null,null,null,"Innpulsa"]
[null,null,null,"Ministerios"]
[null,null,null,"Departamento Nacional de Planeación "]
[null,null,null,"Parques Tecnológicos"]
[null,null,null,"Proexport- Procolombia"]
[null,null,null,"SENA"]
[null,null,null,"Superintendencia de Industria y Comercio"]
[null,null,null,"Universidades"]
[null,null,null,"Grupos de investigación"]
[null,null,null,"Institutos de Formación Técnica"]
[null,null,null,"Proveedores"]
[null,null,null,"Clientes"]
[null,null,null,"Competidores"]
[null,null,null,"Otras Empresas"]
[null,null,null,"Consultores y Expertos"]
[null,null,null,"Cámaras de Comercio"]
[null,null,null,"Oficina de Transferencia de los Resultados de la Investigación (OTRIs)"]
[null,null,null,"Oficina de Derechos de autor"]
[null,null,null,"Otro: Escribir cual"]
[null,null,null,null,null,null,null," "]

{"sheet":"B_10 Fuentes de financiación","index":22,"n_rows":31,"n_cols":8,"rows_kept":31,"cut":false,"hidden":false,"merged":[[61,4,62,4],[63,4,68,4],[7,1,10,2],[28,5,28,6],[29,5,29,6],[33,4,36,4],[45,4,47,4],[49,4,50,4],[52,4,53,4],[22,5,22,6],[23,5,23,6],[24,5,24,6],[25,5,25,6],[26,5,26,6],[27,5,27,6],[16,5,16,6],[17,5,17,6],[18,5,18,6],[19,5,19,6],[20,5,20,6],[21,5,21,6],[8,5,8,6],[9,5,9,6],[10,5,10,6],[11,5,11,6],[12,1,15,1],[12,5,12,6],[14,5,14,6],[15,5,15,6]]}
[]
[]
[]
[]
[]
[]
[]
[null,"10. ¿Cuáles han sido las FUENTES DE FINANCIACIÓN que ha empleado la Organización para la inversión en actividades de Ciencia, Tecnología o Innovación durante el periodo de\n2016-2018?",null,"Recursos Propios de la organización"]
[null,null,null,"Recursos de Otras Empresas del Grupo "]
[null,null,null,"Recursos Públicos"]
[null,null,null,"Recursos de banca privada"]
[null,null,null,"Recursos de capital privado"]
[null,null,null,"Recursos de Cooperación o Donaciones"]
[null,null,null,"Otros",null,"¿Cuál?"]
[]
[]
[]
[]
[]
[]
[]
[]
[]
[]
[]
[]
[]
[]
[]
[]
[null,null,null,null,null,null,null," "]

{"sheet":"B_11 Acceso a recursos públicos","index":23,"n_rows":31,"n_cols":8,"rows_kept":31,"cut":false,"hidden":false,"merged":[[7,1,7,7],[12,1,15,1],[15,5,15,6],[9,2,10,6],[61,4,62,4],[63,4,68,4],[16,2,17,6],[22,2,22,3],[28,5,28,6],[29,5,29,6],[33,4,36,4],[45,4,47,4],[49,4,50,4],[52,4,53,4],[27,5,27,6],[18,5,18,6],[24,5,24,6],[25,5,25,6],[26,5,26,6]]}
[]
[]
[]
[]
[]
[]
[]
[null,"11. Indique si su empresa accedió a Recursos Públicos durante el periodo 2016-2018 para financiar inversiones en\nactividades Científicas, Tecnológicas o de Innovación, de acuerdo a la línea de financiación por la cual se obtuvieron los recursos."]
[]
[null,null,"Líneas de Cofinanciación:\nRecursos no reembolsables que se otorgan para financiar un porcentaje (menor al 100%) del valor total de un proyecto de investigación, desarrollo tecnológico o Innovación. Se exige en este tipo de financiación una contrapartida en dinero o especie por parte de la empresa"]
[]
[]
[null,null,null,"INNpulsa Colombia",null,"¿Cuál programa?"]
[null,null,null,"SENA",null,"¿Cuál programa?"]
[null,null,null,"COLCIENCIAS",null,"¿Cuál programa?"]
[]
[null,null,"Líneas de Crédito:\nRecursos reembolsables que se otorgan para financiar hasta por el 100% del valor total, un proyecto de investigación, desarrollo tecnológico o Innovación."]
[]
[]
[null,null,null,"BANCÓLDEX - INNpulsa",null,"¿Cuál programa?"]
[null,null,null,"¿Otro?",null,"¿Cuál?"]
[null,null,null,"Otras Líneas"]
[null,null,"Fondos Departamentales o Municipales de Ciencia y Tecnología y/o Fondo de Ciencia, Tecnología e Innovación del Sistema General de Regalías "]
[null,null,null,"¿Otro?",null,"¿Cuál?"]
[]
[]
[]
[]
[]
[]
[null,null,null,null,null,null,null," "]

{"sheet":"B_12 Beneficions tributarios","index":24,"n_rows":18,"n_cols":8,"rows_kept":18,"cut":false,"hidden":false,"merged":[[12,5,12,6],[13,5,13,6],[7,1,7,7],[11,5,11,6],[39,4,40,4],[48,4,49,4],[50,4,55,4],[14,5,14,6],[15,5,15,6],[16,5,16,6],[20,4,23,4],[32,4,34,4],[36,4,37,4]]}
[]
[]
[]
[]
[]
[]
[]
[null,"12. Seleccione una de las siguientes opciones, con relación a beneficios tributarios (deducciones o exenciones) por inversiones en\nactividades de Ciencia, Tecnología o Innovación durante el periodo 2016-2018"]
[]
[null,null,null,"Obtuvo beneficios tributarios"]
[null,null,null,"Solicitó beneficios tributarios, pero no los obtuvo"]
[null,null,null,"Tuvo la intención de solicitar beneficios tributarios, pero no lo hizo"]
[null,null,null,"No quiso solicitar beneficios tributarios"]
[null,null,null,"Desconoce cómo acceder a los beneficios tributarios "]
[null,null,null,"Desconoce qué son los beneficios tributarios "]
[]
[]
[null,null,null,null,null,null,null," "]

{"sheet":"Respuesta_beneficios","index":25,"n_rows":10,"n_cols":4,"rows_kept":10,"cut":false,"hidden":true,"merged":[]}
[6,null,1,"Obtuvo beneficios tributarios"]
[null,null,2,"Solicitó beneficios tributarios, pero no los obtuvo"]
[null,null,3,"Tuvo la intención de solicitar beneficios tributarios, pero no lo hizo"]
[null,null,4,"No quiso solicitar beneficios tributarios"]
[null,null,5,"Desconoce cómo acceder a los beneficios tributarios "]
[null,null,6,"Desconoce que son los beneficios tributarios "]
[]
[]
[]
[null,null,null,{"$f":"VLOOKUP(A1,C1:D6,2,1)","v":"Desconoce que son los beneficios tributarios "}]

{"sheet":"B_13 Patentes","index":26,"n_rows":33,"n_cols":9,"rows_kept":33,"cut":false,"hidden":false,"merged":[[63,5,64,5],[65,5,70,5],[9,4,9,5],[30,6,30,7],[31,6,31,7],[35,5,38,5],[28,6,28,7],[29,6,29,7],[23,6,23,7],[47,5,49,5],[19,6,19,7],[22,6,22,7],[51,5,52,5],[54,5,55,5],[24,6,24,7],[25,6,25,7],[26,6,26,7],[27,6,27,7],[20,6,20,7],[7,1,7,6],[9,2,9,3],[11,1,11,2],[12,1,12,2],[21,6,21,7],[8,6,8,7],[16,6,16,7],[17,6,17,7],[18,6,18,7],[13,1,13,2],[14,1,14,2]]}
[]
[]
[]
[]
[]
[]
[]
[null,"13. En relación a la SOLICITUD Y OBTENCIÓN DE PATENTES, por favor indique en la siguiente tabla la información hasta Diciembre de 2018:"]
[]
[null,null,"Cantidad de patentes SOLICITADAS según grupos de países:",null,"                                 Cantidad de patentes OBTENIDAS\n                                      según grupos de países:"]
[null,null,"1. Colombia ",null,"1. Colombia "]
[null,"2. USPTO (Estados Unidos)",null,null,"2. USPTO (Estados Unidos)"]
[null,"3. PCT (Resto del mundo) ",null,null,"3. PCT (Resto del mundo) "]
[null,"4. JPO (Japón)",null,null,"4. JPO (Japón)"]
[null,"5. EPO (Europa)",null,null,"5. EPO (Europa)"]
[null,null,"TOTAL",{"$f":"SUM(D11:D15)","v":0},"TOTAL",{"$f":"SUM(F11:F15)","v":0}]
[]
[]
[]
[]
[]
[]
[]
[]
[]
[]
[]
[]
[]
[]
[]
[]
[null,null,null,null,null,null,null,null," "]

{"sheet":"B_14 Protección de PI","index":27,"n_rows":31,"n_cols":8,"rows_kept":31,"cut":false,"hidden":false,"merged":[[61,4,62,4],[63,4,68,4],[28,5,28,6],[29,5,29,6],[33,4,36,4],[45,4,47,4],[49,4,50,4],[52,4,53,4],[7,1,10,2],[12,1,15,1],[15,5,15,6],[27,5,27,6],[16,5,16,6],[17,5,17,6],[18,5,18,6],[19,5,19,6],[20,5,20,6],[21,5,21,6],[22,5,22,6],[25,5,25,6],[26,5,26,6],[23,5,23,6],[24,5,24,6]]}
[]
[]
[]
[]
[]
[]
[]
[null,"14. Indique si la Organización cuenta con algún otro tipo de registro de protección de la propiedad intelectual:\n(Si responde NO en la primera opción, proceda a presionar el botón Guardar y terminar)"]
[null,null,null,"¿Se cuenta con algún registro de\nPropiedad Intelectual?",null,"¿Cuántos?"]
[null,null,null,"Modelos de utilidad"]
[null,null,null,"Derechos de autor"]
[null,null,null,"Registros de software"]
[null,null,null,"Registros de diseño industrial"]
[null,null,null,"Registros de signos distintivos y Marcas"]
[null,null,null,"Certificados de obtentor de variedades vegetales "]
[]
[]
[]
[]
[]
[]
[]
[]
[]
[]
[]
[]
[]
[]
[]
[null,null,null,null,null,null,null," "]

{"sheet":"Cierre","index":28,"n_rows":0,"n_cols":0,"rows_kept":0,"cut":false,"hidden":false,"merged":[]}

{"sheet":"BD_org","index":29,"n_rows":2,"n_cols":21,"rows_kept":2,"cut":false,"hidden":true,"merged":[]}
["NIT","Razón Social","Departamento","Sector","Ciudad","Dirección","Teléfono","Código CIIU","Año de constitución de la Organización","Nombre del representante legal","Tipo de entidad","% Nacional","% Internacional","Casa Matriz","Sede principal","Nombre de quien diligencia","Número de identificación","Cargo","Teléfono / Celular","Correo electrónico",2]
["Privada","GGg",null,null,null,null,null,null,2011,"And","Mixta",100,null,null,"Bogtña"]

{"sheet":"BD_LB","index":30,"n_rows":3,"n_cols":179,"rows_kept":3,"cut":false,"hidden":true,"merged":[[0,177,0,178],[0,167,0,168],[0,169,0,170],[0,171,0,172],[0,173,0,174],[0,175,0,176],[0,154,0,159],[0,160,0,165],[0,128,0,129],[0,130,0,131],[0,138,0,139],[0,140,0,145],[0,146,0,149],[0,150,0,152],[0,126,0,127],[0,104,0,105],[0,106,0,107],[0,108,0,109],[0,110,0,111],[0,112,0,113],[0,114,0,115],[0,116,0,117],[0,118,0,119],[0,120,0,121],[0,122,0,123],[0,124,0,125],[0,102,0,103],[0,71,0,73],[0,74,0,76],[0,77,0,85],[0,86,0,87],[0,88,0,89],[0,90,0,91],[0,92,0,93],[0,94,0,95],[0,96,0,97],[0,98,0,99],[0,100,0,101],[0,60,0,61],[0,62,0,63],[0,64,0,68],[0,69,0,70],[0,46,0,47],[0,48,0,49],[0,50,0,51],[0,52,0,53],[0,54,0,55],[0,56,0,57],[0,21,0,23],[0,2,0,8],[0,9,0,10],[0,11,1,11],[0,12,0,14],[0,15,0,17],[0,18,0,20]]}
[null,null,"Cuál es el número total de empleados en la Organización",null,null,null,null,null,null,"Tipo de organización",null,"nivel de formación de la Gerencia de la Organización","ventas de la Organización",null,null,"ventas por exportaciones",null,null,"valor de los activos totales",null,null,"utilidades operacionales",null,null,null,null,null,null,null,null,null,null,null,null,null,null,null,null,null,null,null,null,null,null,null,null,"Productos (servicios o bienes) nuevos o significativamente mejorados introducidos al mercado",null,"Procesos nuevos o significativamente mejorados implementados en la producción de la empresa",null,"Métodos de organización nuevos ",null,"Técnicas de comercialización nuevas, aplicados en las respectivas operaciones de la empresa",null,"Abandonado",null,"No finalizado",null,null,null,"Producto ",null,"Mercado",null,"Proceso",null,null,null,null,"Otros impactos",null,"Obstaculos información y cap internas",null,null,"Riesgos",null,null,"Entorno",null,null,null,null,null,null,null,null,"Centros de Desarrollo Tecnológico",null,"Centros de Investigación",null,"Colciencias",null,"ICONTEC",null,"Innpulsa",null,"Ministerios",null,"Departamento Nacional de Planeación ",null,"Parques Tecnológicos",null,"Proexport- Procolombia",null,"SENA",null,"Superintendencia de Industria y Comercio",null,"Universidades",null,"Grupos de investigación",null,"Institutos de Formación Técnica",null,"Proveedores",null,"Clientes",null,"Competidores",null,"Otras Empresas",null,"Consultores y Expertos",null,"Cámaras de Comercio",null,"Oficina de Transferencia de los Resultados de la Investigación (OTRIs)",null,"Oficina de Derechos de autor",null,"Otro: Escribir cual",null,null,null,null,null,null,null,null,null,"Líneas de Cofinanciación:",null,null,null,null,null,"Líneas de crédito",null,null,null,"Otras Líneas",null,null,null,"Solicitadas",null,null,null,null,null,"Obtenidas",null,null,null,null,null,null,"Modelos de utilidad",null,"Derechos de autor",null,"Registros de software",null,"Registros de diseño industrial",null,"Registros de signos distintivos y Marcas",null,"Certificados de obtentor de variedades vegetales "]
["NIT","Número de identificación","Contrato laboral (nómina)","Contratación indirecta (temporales)","Prestación de servicios (contratistas)","Practicantes","Otros","Cual","Total","Empresa familiar","Grupo empresarial",null,2013,2014,2015,2013,2014,2015,2013,2014,2015,2013,2014,2015,"A mayo de 2016, ¿Cuenta la Organización con un ÁREA EXCLUSIVA para el desarrollo de actividades de Ciencia, Tecnología o Innovación?","No hay personas dedicadas","Doctorado","Maestría"," Especialización","Universitario (Profesional)","Tecnólogo","Técnico Profesional","Educación secundaria (completa)","Educación primaria","Formación Profesional Integral- SENA","Ninguna formación","Total","Una Estrategia de Innovación ","Indicadores de Innovación","Un portafolio estratégico de proyectos de innovación","Un proceso definido para llevar las nuevas ideas a la comercialización","Destinación específica de presupuesto y recursos para innovación","Una red de expertos identificada y/o potenciales aliados para el desarrollo de innovaciones","Metodologías, herramientas y/o técnicas interiorizadas para el desarrollo de procesos de innovación","Otros","cuál","Cantidad","Más relevantes","Cantidad","Más relevantes","Cantidad","Más relevantes","Cantidad","Más relevantes","Cuántos","Por qué?","Cuántos","Por qué?","Redujeron costos","Aumentaron facturación","Mejora la calidad de los servicios o bienes","Ampliación en la gama de servicios o bienes","Ha mantenido su participación en el mercado geográfico de su empresa","Ha ingresado a un mercado geográfico nuevo","Aumento de la productividad","Reducción de los costos laborales","Reducción en el uso de materias primas","Reducción en el consumo de energía","Reducción en el consumo de agua","Mejora en el cumplimiento de regulaciones, normas y reglamentos técnicos. Incluye cumplimiento de normas de reducción de vertimientos o emisiones tóxicas y de mejora de las condiciones de seguridad industrial","Aprovechamiento de residuos del proceso productivo","Escasez de recursos propios","Falta de personal calificado","Dificultad para el cumplimiento de regulaciones y reglamentos técnicos","Escasa información sobre mercados","Escasa información sobre tecnología disponible","Escasa información sobre instrumentos públicos de apoyo","Falta de capacidad para identificar nuevas oportunidades de crecimiento ","Incertidumbre frente a la demanda de bienes y servicios innovadores","Incertidumbre frente al éxito en la ejecución técnica del proyecto","Baja rentabilidad de la innovación","Dificultades para acceder a financiamiento externo a la empresa","Escasas posibilidades de cooperación con otras empresas o instituciones","Facilidad de imitación por terceros","Insuficiente capacidad del sistema de propiedad intelectual para proteger la innovación","Baja oferta de servicios de inspección, pruebas, calibración, certificación y verificación",null,"Objetivo",null,"Objetivo",null,"Objetivo",null,"Objetivo",null,"Objetivo",null,"Objetivo",null,"Objetivo",null,"Objetivo",null,"Objetivo",null,"Objetivo",null,"Objetivo",null,"Objetivo",null,"Objetivo",null,"Objetivo",null,"Objetivo",null,"Objetivo",null,"Objetivo",null,"Objetivo",null,"Objetivo",null,"Objetivo",null,"Objetivo",null,"Objetivo",null,"Objetivo","Recursos Propios de la organización","Recursos de Otras Empresas del Grupo ","Recursos Públicos","Recursos de banca privada","Recursos de capital privado","Recursos de Cooperación o Donaciones o Contrapartidas","Otros","Cuál","INNpulsa Colombia","¿Cuál?","SENA","¿Cuál?","COLCIENCIAS","¿Cuál?","BANCOLDEX - INNpulsa","¿Cuál?","¿Otro?","¿Cuál?","Fondos Departamentales o Municipales de Ciencia y Tecnología y/o Fondo de Ciencia, Tecnología e Innovación del Sistema General de Regalías ","¿Otro?","¿Cuál?","Beneficios tributarios","1. Colombia ","2. USPTO (Estados Unidos)","3. PCT (Resto del mundo) ","4. JPO (Japón)","5. EPO (Europa)","TOTAL","1. Colombia ","2. USPTO (Estados Unidos)","3. PCT (Resto del mundo) ","4. JPO (Japón)","5. EPO (Europa)","TOTAL","Registros de PI","SÍ/NO","Cantidad","SÍ/NO","Cantidad","SÍ/NO","Cantidad","SÍ/NO","Cantidad","SÍ/NO","Cantidad","SÍ/NO","Cantidad"]
[null,null,null,null,null,null,null,null,null,null,null,null,null,null,null,null,null,null,null,null,null,null,null,null,null,null,null,null,null,null,null,null,null,null,null,null,null,null,null,null,null,null,null,null,null,null,1,"jp",0,null,0,null,0,null,null,null,null,null,null,null,null,null,null,null,null,null,null,null,null,null,null,null,null,null,null,null,null,null,null,null,null,null,null,null,null,null,null,null,null,null,null,null,null,null,null,null,null,null,null,null,null,null,null,null,null,null,null,null,null,null,null,null,null,null,null,null,null,null,null,null,null,null,null,null,null,null,null,null,null,null,null,null,null,null,null,null,null,null,null,null,null,null,null,null,null,null,null,null,null,null,null,null,null,null,null,null,null,null,null,null,null,null,null,null,null,null,"NO"]

{"sheet":"Listas","index":31,"n_rows":72,"n_cols":8,"rows_kept":72,"cut":false,"hidden":true,"merged":[]}
[]
[null,"Categorías",null,null,"Identificación"]
[null,"Seleccione categoría",null,null,"Seleccione el tipo de ID",null,"SÍ","Aplica"]
[null,"Actividades de I D Internas",null,null,"Cédula de ciudadanía",null,"NO","No aplica"]
[null,"Adquisición de I D externas",null,null,"Cédula de extranjería",null,"N/A"]
[null,"Adquisición de maquinaria y equipo",null,null,"Pasaporte"]
[null,"Tecnologías de la información y las telecomunicaciones",null,null,"¿Qué otro hay?"]
[null,"Mercadotecnia"]
[null,"Transferencia de tecnología"]
[null,"Asistencia técnica y consultoría",null,null,"Alta"]
[null,"Ingeniería y diseño industrial",null,null,"Media"]
[null,"Formación y capacitación especializada",null,null,"Nula"]
[null,"Otros",null,null,null,null,"Categorías"]
[null,"Fuentes de financiación",null,null,"Objetivo de la relación",null,"Seleccione categoría"]
[null,"Recursos propios de la organización",null,null,"Solicitud de financiamiento",null,"Actividades de I D Internas"]
[null,"Recursos de otras empresas del grupo empresarial",null,null,"Transferencia de conocimiento",null,"Adquisición de I D externas"]
[null,"Recursos públicos",null,null,"Desarrollo en conjunto o colaborativo",null,"Adquisición de maquinaria y equipo"]
[null,"Recursos de banca privada",null,null,"Adquisión de tecnología",null,"Tecnologías de la información y las telecomunicaciones"]
[null,"Recursos de capital privado",null,null,"Otro",null,"Mercadotecnia"]
[null,"Recursos de donaciones o contrapartidas",null,null,null,null,"Transferencia de tecnología"]
[null,"Otros",null,null,null,null,"Asistencia técnica y consultoría"]
[null,null,null,null,null,null,"Ingeniería y diseño industrial"]
[null,null,null,null,null,null,"Formación y capacitación especializada"]
[]
[]
[]
[null,"Áreas de la empresa",null,null,"Departamentos",null,"Sectores"]
[1,"Administrativa",null,null,"Amazonas",null,"A. Agricultura, ganadería, caza, silvicultura y pesca "]
[{"$f":"A28+1","v":2},"Calidad",null,null,"Antioquia",null,"B. Explotación de minas y canteras "]
[{"$f":"A29+1","v":3},"Cartera",null,null,"Arauca",null,"C. Industrias Manufactureras"]
[4,"Comercial",null,null,"Atlántico",null,"D. Suministro de electricidad, gas vapor y aire acondicionado"]
[5,"Compras",null,null,"Bolívar",null,"E. Distribución de agua, evacuación y tratamiento de aguas residuales, gestión de desechos y actividades de saneamiento ambiental"]
[6,"Comunicaciones",null,null,"Boyacá",null,"F. Construcción"]
[7,"Contabilidad",null,null,"Caldas",null,"G. Comercio al por mayor y al por menor, reparación de vehículos automotores y motocicletas"]
[8,"Dirección General",null,null,"Caquetá",null,"H. Transporte y almacenamiento"]
[9,"Diseño",null,null,"Casanare",null,"I. Alojamiento y servicios de comida "]
[10,"Distribución",null,null,"Cauca",null,"J. Información y comunicaciones"]
[11,"Financiera",null,null,"Cesar",null,"K. Actividades financieras y de seguros"]
[{"$f":"A38+1","v":12},"Informática",null,null,"Chocó",null,"L. Actividades inmobiliarias"]
[13,"Ingeniería",null,null,"Córdoba",null,"M. Actividades profesionales, científicas y técnicas"]
[14,"Innovación",null,null,"Cundinamarca",null,"N. Actividades de servicios administrativos y de apoyo"]
[15,"Investigación y Desarrollo",null,null,"Guainía",null,"O. Administración pública y defensa, planes de seguridad social de afiliación obligatoria"]
[16,"Legal / Jurídica",null,null,"Guaviare",null,"P. Educación"]
[17,"Logística",null,null,"Huila",null,"Q. Actividades de atención dela salud humana y de asistencia social"]
[18,"Mantenimiento",null,null,"La Guajira",null,"R. Actividades artísticas, de entretenimiento y recreación "]
[19,"Mercadeo",null,null,"Magdalena",null,"S. Otras actividades de servicios "]
[20,"Operaciones",null,null,"Meta",null,"T. Actividades de los hogares en calidad de empleadores, actividades no diferenciadas de los hogares individuales como productores de bienes y servicios para uso propio "]
[{"$f":"A47+1","v":21},"Producción",null,null,"Nariño",null,"U. Actividades de organizaciones y entidades extraterritoriales"]
[22,"Recursos Humanos",null,null,"Norte de Santander",null,"V. Turismo"]
[23,"Salud Ocupacional",null,null,"Putumayo"]
[24,"Seguridad Industrial",null,null,"Quindío"]
[25,"Servicio al cliente",null,null,"Risaralda"]
[26,"Servicios Generales",null,null,"San Andrés y Providencia"]
[27,"Técnica",null,null,"Santander"]
[28,"Tesorería",null,null,"Sucre"]
[29,"Ventas",null,null,"Tolima"]
[30,"Otra",null,null,"Valle del Cauca"]
[null,null,null,null,"Vaupés"]
[null,null,null,null,"Vichada"]
[]
[]
[null,"Nivel de formación",null,null,"Tipo de entidad"]
[null,"Doctorado y/o Postdoctorado",null,null,"Pública"]
[null," Maestría",null,null,"Privada"]
[null," Especialización",null,null,"Mixta"]
[null," Universitario (Profesional)"]
[null," Tecnólogo"]
[null," Técnico Profesional"]
[null," Educación secundaria (completa)"]
[null," Educación primaria"]
[null," Formación Profesional Integral- SENA"]
[null," Ninguno"]

{"sheet":"Términos y condiciones","index":32,"n_rows":2,"n_cols":1,"rows_kept":2,"cut":false,"hidden":true,"merged":[]}
["Aceptó términos y condiciones"]
["SÍ"]